[Event "Live Chess"]
[Site "Chess.com"]
[Date "2023.05.21"]
[Round "-"]
[White "domrobson"]
[Black "Missedidea"]
[Result "1-0"]
[WhiteElo "1759"]
[BlackElo "1825"]
[TimeControl "300"]
[EndTime "18:23:04 PDT"]
[Termination "domrobson won by resignation"]

1. d4 {[%clk 0:04:58.6]} 1... Nf6 {[%clk 0:04:56.8]} 2. c4 {[%clk 0:04:57.7]}
2... g6 {[%clk 0:04:55.7]} 3. Nc3 {[%clk 0:04:56.3]} 3... Bg7 {[%clk 0:04:54.4]}
4. e4 {[%clk 0:04:55.9]} 4... d6 {[%clk 0:04:53.6]} 5. Be2 {[%clk 0:04:55.3]}
5... O-O {[%clk 0:04:52.3]} 6. Bg5 {[%clk 0:04:52.8]} 6... c5 {[%clk 0:04:48.8]}
7. d5 {[%clk 0:04:51.7]} 7... h6 {[%clk 0:04:45.2]} 8. Be3 {[%clk 0:04:50.5]}
8... Nbd7 {[%clk 0:04:41.5]} 9. Qd2 {[%clk 0:04:48.9]} 9... Kh7 {[%clk
0:04:39.6]} 10. f3 {[%clk 0:04:45.8]} 10... a6 {[%clk 0:04:38.4]} 11. g4 {[%clk
0:04:45.1]} 11... Ng8 {[%clk 0:04:25.4]} 12. h4 {[%clk 0:04:37.7]} 12... Rb8
{[%clk 0:04:21.3]} 13. a4 {[%clk 0:04:35.7]} 13... Ne5 {[%clk 0:04:17.3]} 14.
Nh3 {[%clk 0:04:30.5]} 14... e6 {[%clk 0:04:11.9]} 15. Nf2 {[%clk 0:04:12.5]}
15... exd5 {[%clk 0:04:06.9]} 16. exd5 {[%clk 0:04:10.5]} 16... Qe7 {[%clk
0:04:00.4]} 17. O-O-O {[%clk 0:04:06.1]} 17... Re8 {[%clk 0:03:54.4]} 18. Rde1
{[%clk 0:03:58.9]} 18... b5 {[%clk 0:03:48.8]} 19. cxb5 {[%clk 0:03:54.9]} 19...
axb5 {[%clk 0:03:47.4]} 20. Nxb5 {[%clk 0:03:52.3]} 20... c4 {[%clk 0:03:43.3]}
21. f4 {[%clk 0:03:43.3]} 21... Nxg4 {[%clk 0:03:35.1]} 22. Bxg4 {[%clk
0:03:40.3]} 22... Bxg4 {[%clk 0:03:31.1]} 23. Nxg4 {[%clk 0:03:38.3]} 23... Qd7
{[%clk 0:03:19.1]} 24. f5 {[%clk 0:03:25.2]} 24... gxf5 {[%clk 0:03:13.3]} 25.
Nf2 {[%clk 0:03:18.5]} 25... Rxb5 {[%clk 0:03:08.3]} 26. axb5 {[%clk 0:03:16.7]}
26... Qxb5 {[%clk 0:03:06.2]} 27. Reg1 {[%clk 0:03:13.1]} 27... Bf6 {[%clk
0:02:58.4]} 28. Rg2 {[%clk 0:03:01.8]} 28... c3 {[%clk 0:02:51]} 29. bxc3 {[%clk
0:02:56.2]} 29... Qb3 {[%clk 0:02:47.9]} 30. Qc2 {[%clk 0:02:52.9]} 30... Qxc2+
{[%clk 0:02:44.5]} 31. Kxc2 {[%clk 0:02:51.8]} 31... Rxe3 {[%clk 0:02:43.4]} 32.
Nd1 {[%clk 0:02:44.2]} 32... Rf3 {[%clk 0:02:39.9]} 33. Rf2 {[%clk 0:02:41]}
33... Rxf2+ {[%clk 0:02:34.7]} 34. Nxf2 {[%clk 0:02:39.7]} 34... Ne7 {[%clk
0:02:32.2]} 35. c4 {[%clk 0:02:37.3]} 35... Ng6 {[%clk 0:02:29.7]} 36. h5 {[%clk
0:02:34.2]} 36... Ne5 {[%clk 0:02:25]} 37. Kb3 {[%clk 0:02:31.8]} 37... Ng4
{[%clk 0:02:18.1]} 38. Nxg4 {[%clk 0:02:24.4]} 38... fxg4 {[%clk 0:02:16.3]} 39.
Rg1 {[%clk 0:02:21.5]} 39... Bg5 {[%clk 0:02:09.2]} 40. Rxg4 {[%clk 0:02:20.4]}
40... f5 {[%clk 0:02:08.5]} 41. Rg1 {[%clk 0:02:14.5]} 41... f4 {[%clk
0:02:07.7]} 42. Kb4 {[%clk 0:02:10.7]} 42... Kg7 {[%clk 0:02:06.4]} 43. Kb5
{[%clk 0:02:08.9]} 43... Kf7 {[%clk 0:02:04.7]} 44. Kc6 {[%clk 0:02:08.1]} 44...
f3 {[%clk 0:01:52.4]} 45. Rf1 {[%clk 0:02:06]} 45... Ke7 {[%clk 0:01:50.5]} 46.
Rxf3 {[%clk 0:02:04.6]} 46... Bf6 {[%clk 0:01:46.5]} 47. Rxf6 {[%clk 0:02:01.9]}
1-0

[Event "Live Chess"]
[Site "Chess.com"]
[Date "2023.05.21"]
[Round "-"]
[White "Fazer180"]
[Black "NateSolon"]
[Result "0-1"]
[WhiteElo "1751"]
[BlackElo "2662"]
[TimeControl "300"]
[EndTime "18:23:30 PDT"]
[Termination "NateSolon won by checkmate"]

1. e4 {[%clk 0:04:58.2]} 1... c5 {[%clk 0:04:59.1]} 2. Nf3 {[%clk 0:04:56.9]}
2... Nc6 {[%clk 0:04:58.2]} 3. d4 {[%clk 0:04:56.2]} 3... cxd4 {[%clk
0:04:58.1]} 4. Nxd4 {[%clk 0:04:55.5]} 4... e5 {[%clk 0:04:57.6]} 5. Nb5 {[%clk
0:04:52.7]} 5... d6 {[%clk 0:04:56.3]} 6. N1c3 {[%clk 0:04:51.1]} 6... a6 {[%clk
0:04:54.4]} 7. Na3 {[%clk 0:04:50]} 7... Be6 {[%clk 0:04:51.8]} 8. Nd5 {[%clk
0:04:34.5]} 8... Nf6 {[%clk 0:04:46.6]} 9. f3 {[%clk 0:04:29.2]} 9... Be7 {[%clk
0:04:18.5]} 10. c3 {[%clk 0:04:17.7]} 10... O-O {[%clk 0:04:16.7]} 11. Be3
{[%clk 0:04:12.4]} 11... Bxd5 {[%clk 0:04:08.8]} 12. exd5 {[%clk 0:04:10.7]}
12... Nb8 {[%clk 0:04:07.2]} 13. Qb3 {[%clk 0:03:55.5]} 13... b5 {[%clk
0:03:49.4]} 14. Bd3 {[%clk 0:03:52]} 14... Nbd7 {[%clk 0:03:46.9]} 15. Nc2
{[%clk 0:03:45.3]} 15... Nh5 {[%clk 0:03:42.3]} 16. Nb4 {[%clk 0:03:36.9]} 16...
Bg5 {[%clk 0:03:34.6]} 17. Nc6 {[%clk 0:03:28.1]} 17... Qf6 {[%clk 0:03:33.2]}
18. Bxg5 {[%clk 0:03:16.9]} 18... Qxg5 {[%clk 0:03:33.1]} 19. Qc2 {[%clk
0:03:07.6]} 19... Nf4 {[%clk 0:03:32.2]} 20. O-O {[%clk 0:02:57.7]} 20... Nxd5
{[%clk 0:03:24.3]} 21. Bxh7+ {[%clk 0:02:54.8]} 21... Kh8 {[%clk 0:03:23.2]} 22.
Be4 {[%clk 0:02:51.7]} 22... Ne3 {[%clk 0:03:20.6]} 23. Qd2 {[%clk 0:02:45.3]}
23... f5 {[%clk 0:03:12.9]} 24. Bd5 {[%clk 0:02:24.9]} 24... f4 {[%clk
0:02:57.2]} 25. Rfe1 {[%clk 0:02:18.6]} 25... Nb6 {[%clk 0:02:44.9]} 26. Bb3
{[%clk 0:01:53.7]} 26... Rf6 {[%clk 0:02:41.4]} 27. Nb4 {[%clk 0:01:49.4]} 27...
Rh6 {[%clk 0:02:31.2]} 28. Nd5 {[%clk 0:01:44.3]} 28... Nbxd5 {[%clk 0:02:29.3]}
29. Bxd5 {[%clk 0:01:42.6]} 29... Rf8 {[%clk 0:02:25.1]} 30. Re2 {[%clk
0:01:36.2]} 30... Qh4 {[%clk 0:02:15.3]} 31. h3 {[%clk 0:01:28.9]} 31... Rff6
{[%clk 0:02:06.5]} 32. a4 {[%clk 0:01:17.6]} 32... Rfg6 {[%clk 0:02:03.3]} 33.
axb5 {[%clk 0:01:11]} 33... Qxh3 {[%clk 0:01:58.6]} 34. Rxe3 {[%clk 0:01:00.7]}
34... Qh1+ {[%clk 0:01:53.2]} 35. Kf2 {[%clk 0:00:59.4]} 35... Rxg2# {[%clk
0:01:53.1]} 0-1

[Event "Live Chess"]
[Site "Chess.com"]
[Date "2023.05.21"]
[Round "-"]
[White "GEMdzq"]
[Black "IgorSchukin"]
[Result "0-1"]
[WhiteElo "2247"]
[BlackElo "1783"]
[TimeControl "300"]
[EndTime "18:23:44 PDT"]
[Termination "IgorSchukin won by resignation"]

1. e4 {[%clk 0:04:58.7]} 1... c5 {[%clk 0:04:58.3]} 2. d4 {[%clk 0:04:57.7]}
2... cxd4 {[%clk 0:04:56.6]} 3. c3 {[%clk 0:04:57.3]} 3... dxc3 {[%clk
0:04:54.8]} 4. Nxc3 {[%clk 0:04:57.1]} 4... e6 {[%clk 0:04:54.1]} 5. Bc4 {[%clk
0:04:56.2]} 5... Nc6 {[%clk 0:04:53.3]} 6. Nf3 {[%clk 0:04:53.1]} 6... Bb4
{[%clk 0:04:51.9]} 7. O-O {[%clk 0:04:51]} 7... Nge7 {[%clk 0:04:49.9]} 8. Qd3
{[%clk 0:04:50.5]} 8... O-O {[%clk 0:04:40.6]} 9. Rd1 {[%clk 0:04:49.1]} 9...
Bxc3 {[%clk 0:04:37.6]} 10. bxc3 {[%clk 0:04:47.1]} 10... d5 {[%clk 0:04:35.4]}
11. exd5 {[%clk 0:04:45.2]} 11... exd5 {[%clk 0:04:33.1]} 12. Bxd5 {[%clk
0:04:32.9]} 12... Qxd5 {[%clk 0:04:27.1]} 13. Qxd5 {[%clk 0:04:32.8]} 13... Nxd5
{[%clk 0:04:25.9]} 14. Rxd5 {[%clk 0:04:31.2]} 14... Be6 {[%clk 0:04:24.4]} 15.
Rb5 {[%clk 0:04:27.6]} 15... b6 {[%clk 0:04:22.1]} 16. Be3 {[%clk 0:04:23.9]}
16... h6 {[%clk 0:04:13.3]} 17. a4 {[%clk 0:04:09.3]} 17... Rfd8 {[%clk
0:04:08.3]} 18. Nd4 {[%clk 0:04:05.4]} 18... Nxd4 {[%clk 0:03:57.1]} 19. Bxd4
{[%clk 0:04:05.3]} 19... Rd5 {[%clk 0:03:42.4]} 20. Rb2 {[%clk 0:03:58.1]} 20...
Ra5 {[%clk 0:03:32.6]} 21. f3 {[%clk 0:03:54.8]} 21... Rc8 {[%clk 0:03:26.1]}
22. Rb4 {[%clk 0:03:45.7]} 22... Rc4 {[%clk 0:03:22.6]} 23. Kf2 {[%clk
0:03:40.7]} 23... Rxb4 {[%clk 0:03:14]} 24. cxb4 {[%clk 0:03:39.4]} 24... Rd5
{[%clk 0:03:12.4]} 25. Ke3 {[%clk 0:03:38.1]} 25... f6 {[%clk 0:03:11.1]} 26.
Rc1 {[%clk 0:03:31.5]} 26... a5 {[%clk 0:03:03.9]} 27. Bxb6 {[%clk 0:03:08.7]}
27... axb4 {[%clk 0:03:00.9]} 28. a5 {[%clk 0:03:06.3]} 28... Rb5 {[%clk
0:02:56]} 29. Bc7 {[%clk 0:02:57.7]} 29... Bc8 {[%clk 0:02:42.3]} 30. Kd4 {[%clk
0:02:46.4]} 30... Kf7 {[%clk 0:02:38.3]} 31. Kc4 {[%clk 0:02:43.3]} 31... Ba6
{[%clk 0:02:37.1]} 32. Kb3 {[%clk 0:02:40.6]} 32... Ke7 {[%clk 0:02:24.7]} 33.
Bb6 {[%clk 0:02:32.5]} 33... Kd6 {[%clk 0:02:19.9]} 34. Rc7 {[%clk 0:02:20.4]}
34... g5 {[%clk 0:02:17]} 35. Ra7 {[%clk 0:02:17.7]} 35... Bc8 {[%clk
0:02:13.4]} 36. Kc4 {[%clk 0:02:15.3]} 36... b3 {[%clk 0:01:51.9]} 37. Bd4
{[%clk 0:01:26.3]} 37... b2 {[%clk 0:01:49.3]} 38. Bxb2 {[%clk 0:01:25.1]} 38...
Rxb2 {[%clk 0:01:47.8]} 39. Ra8 {[%clk 0:01:17.9]} 39... Be6+ {[%clk 0:01:39.3]}
40. Kd4 {[%clk 0:01:09.4]} 40... Rd2+ {[%clk 0:01:34.1]} 41. Ke4 {[%clk
0:01:04.7]} 41... Bd5+ {[%clk 0:01:32.2]} 42. Kf5 {[%clk 0:01:02.5]} 42... Bxa8
{[%clk 0:01:30.2]} 43. Kxf6 {[%clk 0:01:00.3]} 43... Rxg2 {[%clk 0:01:27.8]} 44.
Kg6 {[%clk 0:00:58.9]} 44... Rxh2 {[%clk 0:01:26.4]} 0-1

[Event "Live Chess"]
[Site "Chess.com"]
[Date "2023.05.21"]
[Round "-"]
[White "Biranidun"]
[Black "nigelst"]
[Result "1-0"]
[WhiteElo "2579"]
[BlackElo "1767"]
[TimeControl "300"]
[EndTime "18:23:54 PDT"]
[Termination "Biranidun won by resignation"]

1. e4 {[%clk 0:04:59.1]} 1... c6 {[%clk 0:04:59.3]} 2. d4 {[%clk 0:04:58.2]}
2... d5 {[%clk 0:04:58.9]} 3. e5 {[%clk 0:04:58]} 3... c5 {[%clk 0:04:57.9]} 4.
dxc5 {[%clk 0:04:57.3]} 4... e6 {[%clk 0:04:56.5]} 5. a3 {[%clk 0:04:56.6]} 5...
Bxc5 {[%clk 0:04:55.3]} 6. Nf3 {[%clk 0:04:56.3]} 6... Ne7 {[%clk 0:04:52.1]} 7.
b4 {[%clk 0:04:55.4]} 7... Bb6 {[%clk 0:04:50.3]} 8. Bb2 {[%clk 0:04:55.1]} 8...
Nf5 {[%clk 0:04:48.2]} 9. Bd3 {[%clk 0:04:53.3]} 9... g6 {[%clk 0:04:46.3]} 10.
Nbd2 {[%clk 0:04:51]} 10... Bd7 {[%clk 0:04:44.8]} 11. h4 {[%clk 0:04:50.2]}
11... Bc6 {[%clk 0:04:43.4]} 12. g4 {[%clk 0:04:49.5]} 12... d4 {[%clk
0:04:39.4]} 13. gxf5 {[%clk 0:04:48.5]} 13... exf5 {[%clk 0:04:34.3]} 14. h5
{[%clk 0:04:45.4]} 14... Nd7 {[%clk 0:04:24.5]} 15. hxg6 {[%clk 0:04:44.5]}
15... fxg6 {[%clk 0:04:23.3]} 16. Nc4 {[%clk 0:04:42.2]} 16... Bc7 {[%clk
0:03:56.9]} 17. Rh3 {[%clk 0:04:39.4]} 17... Qe7 {[%clk 0:03:50.1]} 18. Bxd4
{[%clk 0:04:36.9]} 18... O-O-O {[%clk 0:03:42]} 19. Qe2 {[%clk 0:04:35.1]} 19...
Kb8 {[%clk 0:03:39.5]} 20. e6 {[%clk 0:04:31.5]} 20... Nf6 {[%clk 0:03:36.3]}
21. Bc5 {[%clk 0:04:28.2]} 21... Bd6 {[%clk 0:03:33.8]} 22. Bxd6+ {[%clk
0:04:27.1]} 22... Rxd6 {[%clk 0:03:31]} 23. Nxd6 {[%clk 0:04:27]} 23... Qxd6
{[%clk 0:03:30.1]} 24. Qe5 {[%clk 0:04:26.7]} 24... Qxe5+ {[%clk 0:03:27.8]} 25.
Nxe5 {[%clk 0:04:26.6]} 25... Re8 {[%clk 0:03:21.8]} 26. Nxc6+ {[%clk 0:04:26]}
26... bxc6 {[%clk 0:03:19.5]} 27. Re3 {[%clk 0:04:25.9]} 27... Nd5 {[%clk
0:03:08.8]} 28. Re5 {[%clk 0:04:24.5]} 28... Nf4 {[%clk 0:03:06.2]} 29. Bc4
{[%clk 0:04:23.6]} 29... h5 {[%clk 0:03:01.7]} 30. Rd1 {[%clk 0:04:22.5]} 30...
h4 {[%clk 0:02:59.8]} 31. e7 {[%clk 0:04:20.3]} 31... Kc7 {[%clk 0:02:56.8]} 32.
Rd4 {[%clk 0:04:11.7]} 32... g5 {[%clk 0:02:50.8]} 33. Rd8 {[%clk 0:04:08.5]}
33... Rxd8 {[%clk 0:02:47.5]} 34. exd8=Q+ {[%clk 0:04:08.4]} 34... Kxd8 {[%clk
0:02:46.5]} 35. Rxf5 {[%clk 0:04:08.3]} 35... h3 {[%clk 0:02:44.4]} 36. Rxg5
{[%clk 0:04:05.7]} 36... h2 {[%clk 0:02:39.3]} 37. Rg8+ {[%clk 0:04:05]} 37...
Kc7 {[%clk 0:02:37.4]} 38. Rh8 {[%clk 0:04:04.9]} 1-0

[Event "Live Chess"]
[Site "Chess.com"]
[Date "2023.05.21"]
[Round "-"]
[White "Long1968"]
[Black "xx_blindpuffin_xx"]
[Result "0-1"]
[WhiteElo "1059"]
[BlackElo "2205"]
[TimeControl "300"]
[EndTime "18:24:00 PDT"]
[Termination "xx_blindpuffin_xx won on time"]

1. e4 {[%clk 0:04:56.6]} 1... b6 {[%clk 0:04:55.6]} 2. d4 {[%clk 0:04:51.3]}
2... Bb7 {[%clk 0:04:53]} 3. Nc3 {[%clk 0:04:48.7]} 3... e6 {[%clk 0:04:50]} 4.
Nf3 {[%clk 0:04:44.6]} 4... Bb4 {[%clk 0:04:47]} 5. Bd3 {[%clk 0:04:39.5]} 5...
Nf6 {[%clk 0:04:43.6]} 6. Qe2 {[%clk 0:04:31.8]} 6... d5 {[%clk 0:04:41.6]} 7.
e5 {[%clk 0:04:25.4]} 7... Ne4 {[%clk 0:04:39]} 8. Bd2 {[%clk 0:04:20.7]} 8...
Nxd2 {[%clk 0:04:37.7]} 9. Qxd2 {[%clk 0:04:14.6]} 9... Be7 {[%clk 0:04:35]} 10.
O-O {[%clk 0:04:08.9]} 10... c5 {[%clk 0:04:31.9]} 11. dxc5 {[%clk 0:03:33.6]}
11... bxc5 {[%clk 0:04:29.4]} 12. Bb5+ {[%clk 0:03:02.9]} 12... Bc6 {[%clk
0:04:27.1]} 13. Qd3 {[%clk 0:02:56.2]} 13... O-O {[%clk 0:04:21.7]} 14. Rad1
{[%clk 0:02:48.5]} 14... Qb6 {[%clk 0:04:17.7]} 15. Bxc6 {[%clk 0:02:37.1]}
15... Nxc6 {[%clk 0:04:15.2]} 16. h4 {[%clk 0:02:12.6]} 16... c4 {[%clk
0:04:12.9]} 17. Qe3 {[%clk 0:02:01.9]} 17... Bc5 {[%clk 0:04:04.6]} 18. Qe2
{[%clk 0:01:52.4]} 18... Qxb2 {[%clk 0:03:43.4]} 19. Na4 {[%clk 0:01:46.5]}
19... Qa3 {[%clk 0:03:41.5]} 20. Nxc5 {[%clk 0:01:39.6]} 20... Qxc5 {[%clk
0:03:41.4]} 21. Rb1 {[%clk 0:01:28.7]} 21... Rab8 {[%clk 0:03:39.1]} 22. c3
{[%clk 0:01:15.6]} 22... Rb6 {[%clk 0:03:31.7]} 23. Qc2 {[%clk 0:01:00.4]} 23...
Rfb8 {[%clk 0:03:24.1]} 24. Rxb6 {[%clk 0:00:29.5]} 24... Qxb6 {[%clk
0:03:20.9]} 25. Rc1 {[%clk 0:00:14.8]} 25... Qb2 {[%clk 0:03:18.3]} 0-1

[Event "Live Chess"]
[Site "Chess.com"]
[Date "2023.05.21"]
[Round "-"]
[White "1600x"]
[Black "KeithArkell"]
[Result "1-0"]
[WhiteElo "1892"]
[BlackElo "2573"]
[TimeControl "300"]
[EndTime "18:24:23 PDT"]
[Termination "1600x won by checkmate"]

1. e4 {[%clk 0:04:52.1]} 1... c6 {[%clk 0:04:58.8]} 2. d4 {[%clk 0:04:48.9]}
2... d5 {[%clk 0:04:57]} 3. e5 {[%clk 0:04:42]} 3... c5 {[%clk 0:04:55.6]} 4.
dxc5 {[%clk 0:04:37.7]} 4... Nc6 {[%clk 0:04:54.7]} 5. Nf3 {[%clk 0:04:34.7]}
5... Bg4 {[%clk 0:04:53.7]} 6. Bb5 {[%clk 0:04:31.7]} 6... Bxf3 {[%clk
0:04:52.2]} 7. Qxf3 {[%clk 0:04:30.1]} 7... Qa5+ {[%clk 0:04:51]} 8. Nc3 {[%clk
0:04:28.7]} 8... e6 {[%clk 0:04:50.4]} 9. a3 {[%clk 0:04:21.9]} 9... Bxc5 {[%clk
0:04:44.9]} 10. Qg4 {[%clk 0:04:09.8]} 10... Bf8 {[%clk 0:04:41.4]} 11. Bd2
{[%clk 0:04:01.8]} 11... Qc7 {[%clk 0:04:39.7]} 12. O-O-O {[%clk 0:03:55.3]}
12... Ne7 {[%clk 0:04:38.5]} 13. f4 {[%clk 0:03:48.5]} 13... h5 {[%clk
0:04:36.2]} 14. Qf3 {[%clk 0:03:46.6]} 14... a6 {[%clk 0:04:31.2]} 15. Bd3
{[%clk 0:03:44.7]} 15... g6 {[%clk 0:04:27.6]} 16. Qf2 {[%clk 0:03:42.3]} 16...
Rc8 {[%clk 0:04:25.1]} 17. Kb1 {[%clk 0:03:40.7]} 17... Nf5 {[%clk 0:04:20.9]}
18. Bxf5 {[%clk 0:03:29.5]} 18... gxf5 {[%clk 0:04:20.8]} 19. Be3 {[%clk
0:03:27.7]} 19... b5 {[%clk 0:04:16.7]} 20. Rxd5 {[%clk 0:03:20.8]} 20... exd5
{[%clk 0:04:15.3]} 21. Nxd5 {[%clk 0:03:17.1]} 21... Qb7 {[%clk 0:03:55.7]} 22.
Nf6+ {[%clk 0:03:10]} 22... Ke7 {[%clk 0:03:53.4]} 23. Bb6 {[%clk 0:03:01.6]}
23... Nb8 {[%clk 0:03:34.2]} 24. Rd1 {[%clk 0:02:46.5]} 24... Qc6 {[%clk
0:03:10]} 25. Rd6 {[%clk 0:02:37]} 25... Qxd6 {[%clk 0:02:33.7]} 26. exd6+
{[%clk 0:02:29.4]} 26... Kxf6 {[%clk 0:02:32.8]} 27. Qd4+ {[%clk 0:02:24.1]}
27... Kg6 {[%clk 0:02:30.1]} 28. Qxh8 {[%clk 0:02:07.3]} 28... Nd7 {[%clk
0:02:22.9]} 29. Bd4 {[%clk 0:01:57]} 29... f6 {[%clk 0:02:10.4]} 30. Qg8+ {[%clk
0:01:54]} 30... Kh6 {[%clk 0:02:09.5]} 31. Qe6 {[%clk 0:01:52.6]} 31... Rd8
{[%clk 0:02:07.4]} 32. Bxf6 {[%clk 0:01:46.8]} 32... Nc5 {[%clk 0:02:06.7]} 33.
Qg8 {[%clk 0:01:39.4]} 33... Re8 {[%clk 0:01:55.2]} 34. Bg5# {[%clk 0:01:26]}
1-0

[Event "Live Chess"]
[Site "Chess.com"]
[Date "2023.05.21"]
[Round "-"]
[White "GMHarry-youtube"]
[Black "LutherSullivan"]
[Result "1-0"]
[WhiteElo "2057"]
[BlackElo "2128"]
[TimeControl "300"]
[EndTime "18:24:27 PDT"]
[Termination "GMHarry-youtube won by resignation"]

1. e4 {[%clk 0:04:58.2]} 1... e5 {[%clk 0:04:56.4]} 2. Nf3 {[%clk 0:04:56.7]}
2... Nc6 {[%clk 0:04:55.5]} 3. Bc4 {[%clk 0:04:55.3]} 3... Nf6 {[%clk
0:04:52.4]} 4. d3 {[%clk 0:04:54.3]} 4... Be7 {[%clk 0:04:50.6]} 5. c3 {[%clk
0:04:51]} 5... O-O {[%clk 0:04:48.2]} 6. O-O {[%clk 0:04:49.7]} 6... d5 {[%clk
0:04:44.5]} 7. exd5 {[%clk 0:04:47.5]} 7... Nxd5 {[%clk 0:04:44.1]} 8. Re1
{[%clk 0:04:47.2]} 8... Nb6 {[%clk 0:04:32.1]} 9. Bb3 {[%clk 0:04:22.3]} 9...
Bg4 {[%clk 0:04:29.7]} 10. h3 {[%clk 0:04:15]} 10... Bh5 {[%clk 0:04:27.2]} 11.
g4 {[%clk 0:04:12.4]} 11... Bg6 {[%clk 0:04:24]} 12. Nxe5 {[%clk 0:04:09.7]}
12... Nxe5 {[%clk 0:04:21.5]} 13. Rxe5 {[%clk 0:04:09.6]} 13... Bf6 {[%clk
0:04:19.7]} 14. Re3 {[%clk 0:04:03.4]} 14... Bg5 {[%clk 0:04:17.9]} 15. Rg3
{[%clk 0:03:58.2]} 15... Bxc1 {[%clk 0:04:09]} 16. Qxc1 {[%clk 0:03:58.1]} 16...
Bxd3 {[%clk 0:04:06.6]} 17. Na3 {[%clk 0:03:49.9]} 17... Bg6 {[%clk 0:03:52.9]}
18. Qd1 {[%clk 0:03:46.5]} 18... c6 {[%clk 0:03:44.7]} 19. Nc4 {[%clk
0:03:40.7]} 19... Qg5 {[%clk 0:03:24.5]} 20. Nxb6 {[%clk 0:03:32]} 20... axb6
{[%clk 0:03:21.6]} 21. Qd7 {[%clk 0:03:22.6]} 21... Rab8 {[%clk 0:03:15.4]} 22.
Re1 {[%clk 0:03:12.6]} 22... Rfd8 {[%clk 0:03:08.7]} 23. Qe7 {[%clk 0:02:48.4]}
23... Qxe7 {[%clk 0:03:02.5]} 24. Rxe7 {[%clk 0:02:45.2]} 24... Kf8 {[%clk
0:02:56.4]} 25. Rc7 {[%clk 0:02:41.6]} 25... Re8 {[%clk 0:02:26.9]} 26. Rf3
{[%clk 0:02:34.5]} 26... Re7 {[%clk 0:02:09.2]} 27. Rxe7 {[%clk 0:02:26.7]}
27... Kxe7 {[%clk 0:02:08.6]} 28. Re3+ {[%clk 0:02:26.4]} 28... Kd6 {[%clk
0:02:06.3]} 29. f4 {[%clk 0:02:26.1]} 29... f5 {[%clk 0:01:55.4]} 30. Rd3+
{[%clk 0:02:19.7]} 30... Ke7 {[%clk 0:01:45.1]} 31. Re3+ {[%clk 0:02:10.8]}
31... Kf8 {[%clk 0:01:30.4]} 32. g5 {[%clk 0:02:06.9]} 32... Re8 {[%clk
0:01:25.4]} 33. Rxe8+ {[%clk 0:02:03.6]} 33... Bxe8 {[%clk 0:01:24.4]} 34. Be6
{[%clk 0:02:03.4]} 34... g6 {[%clk 0:01:08.9]} 35. Bc8 {[%clk 0:02:02.2]} 35...
Ke7 {[%clk 0:01:05.6]} 36. Bxb7 {[%clk 0:01:58.2]} 36... Kd6 {[%clk 0:01:03.5]}
37. Ba6 {[%clk 0:01:54.1]} 37... b5 {[%clk 0:01:01.8]} 38. c4 {[%clk 0:01:52.9]}
38... b4 {[%clk 0:00:30.7]} 39. b3 {[%clk 0:01:45.9]} 39... Kc5 {[%clk
0:00:29.8]} 40. Bc8 {[%clk 0:01:44.3]} 40... Bf7 {[%clk 0:00:27.8]} 41. Bd7
{[%clk 0:01:40.4]} 41... Kd6 {[%clk 0:00:26.3]} 42. Bc8 {[%clk 0:01:39.8]} 42...
Kc7 {[%clk 0:00:24.9]} 43. Ba6 {[%clk 0:01:36.6]} 43... Be6 {[%clk 0:00:24.4]}
44. c5 {[%clk 0:01:35]} 44... Bd5 {[%clk 0:00:20.8]} 45. Bc4 {[%clk 0:01:33.8]}
45... Be4 {[%clk 0:00:20.1]} 46. Bg8 {[%clk 0:01:27.1]} 46... Bb1 {[%clk
0:00:18.3]} 47. Bxh7 {[%clk 0:01:26.1]} 47... Bxa2 {[%clk 0:00:17.8]} 48. Bxg6
{[%clk 0:01:25.7]} 48... Bxb3 {[%clk 0:00:17.5]} 49. Bxf5 {[%clk 0:01:25]} 49...
Bg8 {[%clk 0:00:15.4]} 50. h4 {[%clk 0:01:24.4]} 50... b3 {[%clk 0:00:14.4]} 51.
h5 {[%clk 0:01:23.9]} 51... b2 {[%clk 0:00:13.3]} 52. h6 {[%clk 0:01:23.4]}
52... Be6 {[%clk 0:00:11.1]} 53. Bb1 {[%clk 0:01:19.9]} 1-0